bitfinex-derivatives/quotes_ETHF0:USTF0_20260208
["timestamp","ask_amount","ask_price","bid_price","bid_amount"]
[1770592111192,10.76120482,2137.7,2134.8,2.65651413]
[1770592111193,10.76120482,2137.3,2135.5,10.87337053]
[1770592111491,10.99530482,2137.3,2135.5,10.87337053]
[1770592112198,10.99530482,2137.3,2135.5,10.87844064]
[1770592112398,10.76120482,2137.3,2135.6,6.10657241]
[1770592112594,10.76120482,2137.3,2135.7,10.87337053]
[1770592113499,10.99530482,2137.3,2135.5,0.00507011]
[1770592113800,10.99532482,2137.1,2135.5,0.00507011]
[1770592114196,10.99532482,2137.1,2135.5,10.87844064]
[1770592114503,10.76120482,2137.1,2135.7,10.87337053]
[1770592114996,10.76529206,2137.9,2135.9,10.87337053]
[1770592115300,10.76529206,2137.9,2136.0,6.14598095]
[1770592115495,10.76529206,2137.9,2136.1,10.87337053]
[1770592115694,10.76120482,2137.7,2136.0,10.87337053]
[1770592115901,10.76120482,2137.0,2135.5,0.00507011]
[1770592116105,10.99536482,2136.8,2135.5,0.00507011]
[1770592116401,10.76120482,2136.6,2135.5,0.00507011]
[1770592117007,10.99538482,2136.6,2135.5,0.00507011]
[1770592117209,10.76120482,2136.2,2133.9,10.87337053]
[1770592117600,10.76120482,2136.2,2134.5,10.87337053]
[1770592118199,10.76664993,2136.2,2134.5,10.8773104]
[1770592119012,10.76120482,2136.0,2134.5,0.00393987]
[1770592119211,10.99544482,2136.0,2134.5,0.00393987]
[1770592119407,10.76120482,2136.0,2134.5,0.00393987]
[1770592119613,10.76120482,2135.0,2132.9,10.87337053]
[1770592120309,10.76120482,2135.8,2132.9,10.87337053]
[1770592120505,10.76120482,2135.8,2133.1,10.87337053]
[1770592120707,10.76120482,2135.8,2133.1,10.87903557]
[1770592120901,10.76120482,2135.8,2133.3,10.87337053]
[1770592121310,10.76120482,2135.8,2133.5,10.87337053]
[1770592121608,10.76120482,2135.8,2133.7,10.87337053]
[1770592121910,10.76120482,2135.8,2133.9,10.87337053]
[1770592122208,10.76120482,2135.8,2134.1,10.87337053]
[1770592122511,0.01,2136.0,2134.1,10.87337053]
[1770592122512,10.77120482,2136.0,2134.1,10.87337053]
[1770592122709,11.00544482,2136.0,2134.1,10.87337053]
[1770592122910,10.76120482,2135.8,2134.1,10.87337053]
[1770592123510,10.76120482,2135.6,2133.8,10.87337053]
[1770592123907,10.76120482,2135.6,2134.3,10.87337053]
[1770592124306,0.01,2136.0,2134.5,10.87337053]
[1770592124307,10.77120482,2136.0,2134.5,10.87337053]
[1770592125012,0.01,2136.0,2134.7,10.70375559]
[1770592125200,0.01,2136.0,2134.7,10.70933526]
[1770592125402,11.54525387,2136.0,2134.7,10.70933526]
[1770592127609,11.53525387,2135.4,2133.9,10.70375559]
[1770592127811,11.53525387,2135.4,2132.8,0.23458]
[1770592128116,11.53525387,2135.3,2133.1,10.70375559]
[1770592128612,0.24425,2136.0,2133.3,10.70375559]
[1770592128809,0.24425,2136.0,2133.2,6.18783754]
[1770592128810,11.53525387,2135.7,2133.6,10.70375559]
[1770592129109,11.53525387,2135.7,2133.7,6.12561432]
[1770592129312,11.53525387,2135.7,2133.8,10.70375559]
[1770592129615,11.54525387,2136.0,2134.2,10.70375559]
[1770592129910,11.53525387,2135.7,2134.2,10.70375559]
[1770592131112,11.53525387,2135.9,2133.6,10.70375559]
[1770592131517,11.53525387,2135.9,2133.8,10.70375559]
[1770592131712,11.76950387,2135.9,2133.8,10.70375559]
[1770592132016,11.53525387,2135.6,2134.0,10.70375559]
[1770592132811,11.76953387,2135.6,2134.0,10.70375559]
[1770592134418,0.01,2136.0,2133.1,0.00341649]
[1770592134419,0.01,2136.0,2134.2,10.70375559]
[1770592134621,11.54525387,2136.0,2134.2,10.70375559]
[1770592134822,11.54525387,2136.0,2134.4,10.70375559]
[1770592135414,11.77949387,2136.0,2134.4,10.70375559]
[1770592136014,11.53525387,2135.6,2134.4,10.70375559]
[1770592136216,0.23433,2135.2,2133.6,10.70375559]
[1770592136420,11.53525387,2135.1,2133.6,10.70375559]
[1770592136724,0.23435,2135.0,2133.6,10.70375559]
[1770592136920,11.53525387,2135.1,2133.6,10.70375559]
[1770592137227,11.76953387,2135.6,2133.8,10.70375559]
[1770592137523,11.76953387,2135.6,2133.9,6.11156959]
[1770592137722,11.54525387,2136.0,2134.1,10.70375559]
[1770592138120,11.54525387,2136.0,2134.3,10.70375559]
[1770592138320,11.54525387,2136.0,2134.5,10.70375559]
[1770592138525,11.53525387,2135.6,2134.2,10.70375559]
[1770592138726,11.76955387,2135.5,2134.2,10.70375559]
[1770592139919,11.53525387,2135.5,2134.2,10.70375559]
[1770592140316,11.53525387,2135.9,2134.4,10.70375559]
[1770592140515,11.76952387,2135.7,2134.4,10.70375559]
[1770592140718,11.53525387,2135.4,2134.4,10.70375559]
[1770592141029,11.53525387,2134.7,2133.4,2.65651413]
[1770592141219,0.23439,2134.6,2133.2,10.70375559]
[1770592141527,11.53525387,2134.5,2133.2,10.70375559]
[1770592141730,0.00524395,2134.7,2133.2,10.70375559]
[1770592142029,11.54049782,2134.7,2133.2,10.70375559]
[1770592142219,0.00524395,2134.7,2133.4,10.70375559]
[1770592142417,11.53525387,2134.5,2133.1,10.70717208]
[1770592142822,0.00524395,2134.7,2133.1,10.70717208]
[1770592143025,11.76964387,2134.6,2133.1,10.70717208]
[1770592143331,11.53525387,2134.3,2133.1,10.70717208]
[1770592143628,11.53525387,2134.6,2133.1,10.70717208]
[1770592143929,0.00524395,2134.7,2133.3,10.70375559]
[1770592144127,0.00524395,2134.7,2133.5,10.70375559]
[1770592144323,11.53525387,2135.2,2133.5,10.70375559]
[1770592144324,11.53525387,2135.2,2133.7,13.36026972]
[1770592144626,11.53525387,2135.5,2134.0,2.65651413]
[1770592144828,11.53525387,2135.8,2134.1,10.70375559]
[1770592145030,11.53525387,2135.9,2134.5,10.70375559]
[1770592145328,0.0060613,2135.9,2134.7,10.70375559]
[1770592145831,11.53525387,2137.0,2135.4,10.70375559]
[1770592146332,11.53525387,2137.0,2135.6,10.70375559]
[1770592146733,0.00412572,2137.0,2135.8,10.70375559]
[1770592146928,11.53525387,2137.7,2135.8,13.36026972]
[1770592147131,11.53525387,2137.7,2136.1,13.36026972]
[1770592147331,4.35685,2139.3,2136.3,10.70375559]
[1770592147332,11.53525387,2138.6,2136.3,10.70375559]
[1770592147629,11.53525387,2138.4,2136.5,10.70375559]
[1770592147821,11.53525387,2138.4,2136.7,10.70375559]
[1770592148021,11.53993186,2138.4,2136.7,10.70870239]
[1770592148225,11.53993186,2138.4,2137.1,10.70375559]
[1770592148826,0.00467799,2138.4,2137.1,10.70375559]
[1770592149028,11.53993186,2138.4,2137.1,10.70375559]
[1770592149734,0.00467799,2138.4,2137.3,10.70375559]
[1770592149934,11.53525387,2139.1,2137.3,10.70375559]
[1770592150130,11.53525387,2139.1,2137.5,10.70375559]
[1770592150928,11.53525387,2139.1,2137.1,10.70375559]
[1770592150929,11.53525387,2138.8,2137.1,10.70375559]
[1770592151432,11.53525387,2138.8,2137.3,10.70375559]
[1770592151936,11.53878071,2139.1,2137.3,10.70375559]
[1770592152142,11.53878071,2139.1,2137.5,10.70375559]
[1770592154031,11.53525387,2138.6,2136.8,10.70375559]
[1770592154536,11.53525387,2138.6,2136.9,10.70375559]
[1770592154835,11.53525387,2138.6,2137.0,6.2087692]
[1770592155036,11.53525387,2138.6,2137.1,10.42559052]
[1770592155436,10.51592563,2139.0,2137.3,10.42559052]
[1770592155829,0.00352684,2139.1,2137.5,10.42559052]
[1770592156025,10.99691189,2139.1,2137.5,10.42559052]
[1770592156231,10.99691189,2139.1,2137.6,6.03046645]
[1770592156538,10.99691189,2139.1,2137.7,11.26360838]
[1770592157534,0.00352684,2139.1,2137.9,11.26360838]
[1770592157733,10.99691189,2139.1,2137.8,5.94621294]
[1770592157926,10.99691189,2139.1,2137.6,11.26360838]
[1770592158126,0.23396,2138.6,2136.9,11.26360838]
[1770592158335,0.00352684,2139.1,2136.9,11.26360838]
[1770592158336,10.99338505,2138.9,2136.9,11.26360838]
[1770592158531,10.99338505,2138.9,2137.3,11.26360838]
[1770592159034,0.23399,2138.3,2136.8,11.26360838]
[1770592159236,11.22738505,2138.2,2136.7,0.0049468]
[1770592159435,10.99338505,2137.0,2135.0,11.26360838]
[1770592159834,10.99338505,2137.0,2135.5,6.08620474]
[1770592160034,10.99338505,2136.7,2135.5,11.26360838]
[1770592160229,10.99338505,2136.7,2134.3,11.26875084]
[1770592160434,11.2317209,2136.7,2134.4,11.26360838]
[1770592160634,10.99338505,2136.3,2134.4,11.26360838]
[1770592160830,10.99338505,2136.3,2134.6,11.26360838]
[1770592161035,10.9975609,2136.7,2134.6,11.26360838]
[1770592161336,0.00417585,2136.7,2134.8,11.26360838]
[1770592161532,10.9975609,2136.7,2134.8,11.26360838]
[1770592161730,10.99338505,2136.5,2134.8,11.26360838]
[1770592162133,11.22759505,2136.3,2134.8,11.26360838]
[1770592162444,11.22759505,2136.3,2134.4,11.26360838]
[1770592162837,11.22759505,2136.3,2134.5,11.26360838]
[1770592163847,10.99338505,2136.3,2134.7,11.26360838]
[1770592164548,10.99338505,2136.3,2134.4,6.16366306]
[1770592164549,0.00417585,2136.7,2134.9,11.26360838]
[1770592164842,0.00417585,2136.7,2135.1,11.26360838]
[1770592165237,0.00417585,2136.7,2135.3,11.26360838]
[1770592165435,10.9975609,2136.7,2134.9,11.26360838]
[1770592165946,10.9975609,2136.7,2135.1,11.26360838]
[1770592166542,10.9975609,2136.7,2134.4,6.15096409]
[1770592166543,10.99338505,2136.5,2134.5,11.26360838]
[1770592166746,10.99338505,2136.1,2134.5,11.26360838]
[1770592166938,10.99338505,2135.9,2134.5,11.26360838]
[1770592167143,11.22763505,2135.9,2134.3,0.00388292]
[1770592167344,0.23426,2135.8,2134.3,11.2674913]
[1770592167546,10.99338505,2135.7,2134.3,0.00388292]
[1770592167740,11.22766505,2135.7,2134.3,0.00388292]
[1770592168541,11.22766505,2135.7,2134.3,11.2674913]
[1770592168944,10.99338505,2135.7,2134.3,11.2674913]
[1770592169247,10.99338505,2136.3,2134.5,11.26360838]
[1770592170442,10.99338505,2136.3,2134.3,0.00388292]
[1770592170443,10.9975609,2136.7,2134.7,11.26360838]
[1770592170746,10.9975609,2136.7,2134.8,6.20486115]
[1770592170948,10.9975609,2136.7,2134.9,11.26360838]
[1770592171145,10.99338505,2137.8,2135.7,11.26360838]
[1770592171646,10.99338505,2137.8,2135.9,11.26360838]
[1770592171853,10.99338505,2137.8,2136.2,11.26360838]
[1770592172054,10.99338505,2138.2,2136.2,11.26360838]
[1770592172248,10.99857695,2138.2,2136.4,11.26360838]
[1770592172658,10.99857695,2138.2,2136.6,11.26360838]
[1770592173943,10.99338505,2137.8,2136.2,11.26712621]
[1770592174148,11.22743505,2137.8,2136.2,11.26712621]
[1770592174756,10.99338505,2137.6,2136.2,11.26712621]
[1770592175253,10.99338505,2136.9,2135.0,2.6715254]
[1770592175457,10.99338505,2136.7,2135.1,11.26360838]
[1770592175856,10.99338505,2136.5,2135.1,11.26360838]
[1770592176455,11.22757505,2136.5,2135.1,11.26360838]
[1770592176652,11.23132053,2136.5,2135.1,11.26939986]
[1770592177051,10.99338505,2136.3,2135.1,0.00579148]
[1770592177257,10.99713053,2136.5,2135.1,11.26939986]
[1770592179465,10.99713053,2136.5,2134.4,2.6715254]
[1770592179466,10.99338505,2136.2,2134.3,11.26360838]
[1770592179966,10.99338505,2136.2,2134.5,11.26360838]
[1770592180465,10.99338505,2136.2,2134.5,11.268499]
[1770592180659,10.99338505,2136.2,2134.7,11.26360838]
[1770592182472,10.99338505,2135.9,2134.5,0.00489062]
[1770592183571,0.23427,2135.7,2134.5,0.00489062]
[1770592183776,10.99338505,2135.4,2134.5,0.00158124]
[1770592185675,10.2480621,2136.0,2134.5,10.42607359]
[1770592186083,3.69187791,2136.5,2133.3,5.32959841]
[1770592186084,0.23435,2135.0,2133.3,5.32959841]
[1770592186274,0.23435,2135.0,2133.1,6.61987518]
[1770592186275,10.2480621,2134.8,2133.1,10.42449235]
[1770592186675,10.2480621,2134.8,2132.5,0.23462]
[1770592186676,10.2480621,2134.8,2133.3,10.42449235]
[1770592187275,10.25237369,2134.8,2133.5,10.42449235]
[1770592188670,0.00431159,2134.8,2133.5,10.42449235]
[1770592188877,0.00431159,2134.8,2133.7,10.42449235]
[1770592189079,10.2480621,2135.4,2133.7,10.42449235]
[1770592189278,10.2480621,2135.4,2133.9,10.42449235]
[1770592189584,10.2480621,2135.4,2134.0,6.09568812]
[1770592189785,10.2480621,2135.4,2134.1,10.42449235]
[1770592190187,10.25384065,2135.4,2134.1,10.42449235]
[1770592191180,0.00577855,2135.4,2134.1,10.42449235]
[1770592191381,0.00577855,2135.4,2134.3,10.42449235]
[1770592192590,10.2480621,2136.4,2134.4,6.05952526]
[1770592192780,10.2480621,2136.4,2134.6,10.42449235]
[1770592193081,10.2480621,2136.4,2134.7,6.14319695]
[1770592193280,10.2480621,2136.4,2134.8,10.42449235]
[1770592193680,10.2480621,2136.4,2134.9,6.14319695]
[1770592193681,10.4822921,2136.1,2134.9,6.14319695]
[1770592193882,6.72078218,2135.3,2133.8,10.42449235]
[1770592194184,0.00600385,2136.4,2133.9,10.42449235]
[1770592194185,6.72078218,2135.8,2133.9,10.42449235]
[1770592194379,6.92450951,2136.1,2134.1,10.42449235]
[1770592194782,6.92450951,2136.1,2134.2,6.0837097]
[1770592195084,6.92450951,2136.1,2134.3,10.42449235]
[1770592195486,6.92450951,2136.1,2134.4,6.15628547]
[1770592195686,6.92450951,2136.1,2134.5,10.42449235]
[1770592197081,7.63334724,2135.6,2134.2,10.42449235]
[1770592197280,12.55064724,2135.4,2134.1,0.00580193]
[1770592197488,7.5999911,2135.3,2134.1,0.00580193]
[1770592197786,7.5999911,2135.3,2134.1,10.43029428]
[1770592198188,0.00600385,2136.4,2134.3,10.42449235]
[1770592198189,7.59691843,2136.1,2134.3,10.42449235]
[1770592198383,7.56970761,2136.4,2134.5,10.42449235]
[1770592198590,0.00600385,2136.4,2134.5,10.65889235]
[1770592198788,0.00600385,2136.4,2134.7,10.42449235]
[1770592198976,7.50782415,2136.3,2134.7,10.42449235]
[1770592199182,12.19082415,2136.3,2134.7,10.42449235]
[1770592199382,0.00600385,2136.4,2134.9,10.42449235]
[1770592200687,0.00600385,2136.4,2135.1,10.42449235]
[1770592200896,7.28883339,2136.4,2135.1,10.42449235]
[1770592201595,6.97815462,2136.2,2135.1,10.42449235]
[1770592201789,7.21236462,2136.2,2134.2,10.42449235]
[1770592201982,6.9735002,2135.9,2134.2,10.42449235]
[1770592202290,6.9735002,2135.9,2134.3,10.42449235]
[1770592202492,7.15350481,2135.6,2134.3,10.42449235]
[1770592202694,6.91921481,2135.2,2134.1,0.00580193]
[1770592202883,6.91921481,2135.2,2134.1,10.43029428]
[1770592203295,6.54441481,2135.2,2134.1,10.43029428]
[1770592203989,6.54085465,2135.8,2134.1,10.43029428]
[1770592204191,0.23424,2136.0,2134.3,10.42449235]
[1770592204491,6.51947904,2136.4,2134.6,10.42449235]
[1770592204696,6.51947904,2136.4,2134.8,10.42449235]
[1770592204897,6.78589839,2135.9,2134.5,10.42449235]
[1770592205391,6.49836458,2135.6,2134.5,10.42449235]
[1770592205595,6.73265458,2135.5,2134.1,10.43029428]
[1770592206093,6.72794586,2135.4,2134.1,10.43029428]
[1770592206594,4.683,2135.7,2133.4,10.42449235]
[1770592206595,6.66930564,2134.8,2133.4,10.42449235]
[1770592206794,6.32100662,2134.5,2133.1,10.42449235]
[1770592206990,6.55539662,2134.6,2133.1,10.42449235]
[1770592207794,6.56069541,2134.6,2133.1,10.42915382]
[1770592207993,0.2344,2134.5,2133.1,10.42915382]
[1770592208197,6.26501269,2134.4,2133.1,10.42915382]
[1770592208597,6.21496322,2133.7,2132.0,10.42449235]
[1770592209496,6.56243156,2133.5,2132.0,10.42449235]
[1770592209794,10.20092263,2134.3,2131.0,10.42449235]
[1770592209795,6.55723855,2132.6,2131.0,10.42449235]
[1770592210694,6.55723855,2132.6,2131.0,10.42998226]
[1770592210998,6.56060706,2132.6,2131.0,10.42998226]
[1770592211199,0.00336851,2132.6,2131.0,10.42998226]
[1770592211585,6.88716175,2132.5,2131.0,10.42998226]
[1770592211992,6.8811872,2132.3,2131.0,10.42998226]
[1770592212192,6.8811872,2132.3,2131.0,0.00117834]
[1770592213194,3.68813243,2132.4,2130.3,10.42449235]
[1770592213195,6.9401854,2132.0,2130.3,10.42449235]
[1770592213401,6.89056701,2131.8,2130.3,10.42449235]
[1770592213598,6.89056701,2131.3,2129.9,10.42449235]
[1770592214305,6.89056701,2131.3,2129.9,10.42983964]
[1770592214796,6.89056701,2131.3,2129.9,0.00534729]
[1770592214997,7.12244788,2130.3,2128.5,10.42449235]
[1770592215306,7.12244788,2129.4,2127.7,10.47777287]
[1770592215694,7.10265009,2130.1,2127.7,10.47777287]
[1770592216001,7.09168574,2129.6,2127.7,10.48120776]
[1770592216198,7.32663574,2129.6,2127.7,10.48120776]
[1770592216394,7.03437062,2129.1,2127.7,0.00343489]
[1770592216602,7.03437062,2129.1,2127.7,10.22241655]
[1770592217199,6.96829907,2129.4,2127.7,10.22241655]
[1770592218105,6.91845226,2130.1,2127.9,10.21898166]
[1770592219300,6.91845226,2130.1,2127.7,10.22241655]
[1770592219301,6.80491213,2129.5,2127.7,10.22241655]
[1770592219605,6.80491213,2130.0,2127.8,6.17200557]
[1770592219901,6.80491213,2130.0,2127.9,10.21898166]
[1770592220204,0.00373995,2130.1,2128.1,10.21898166]
[1770592220601,0.00373995,2130.1,2128.0,9.77370605]
[1770592220602,0.00373995,2130.1,2128.6,10.21898166]
[1770592220799,6.75237505,2131.0,2128.6,10.21898166]
[1770592221105,6.69769061,2130.7,2128.6,10.21898166]
[1770592221707,6.65194769,2130.4,2128.6,10.21898166]
[1770592222701,0.00536264,2130.7,2128.8,10.21898166]
[1770592223502,0.00536264,2130.7,2129.0,10.21898166]
[1770592224012,6.18184778,2130.2,2129.0,10.21898166]
[1770592224310,6.18184778,2130.2,2127.8,10.21898166]
[1770592224512,6.41672778,2130.2,2127.8,10.21898166]
[1770592224709,6.41672778,2130.2,2127.9,10.21898166]
[1770592225005,0.00536264,2130.7,2127.9,10.21898166]
[1770592225006,5.48306778,2129.9,2127.9,10.21898166]
[1770592225209,5.48306778,2129.7,2127.9,10.21898166]
[1770592225407,3.68813243,2130.0,2127.9,10.21898166]
[1770592225408,5.47346757,2129.4,2127.9,10.21898166]
[1770592225706,1.08556264,2130.7,2127.9,10.21898166]
[1770592225707,5.47346757,2130.1,2127.9,10.21898166]
[1770592226104,5.47282243,2129.7,2127.9,10.21898166]
[1770592226500,5.42843321,2129.6,2127.9,10.21898166]
[1770592226708,4.683,2130.0,2127.7,0.00343489]
[1770592226709,5.42843321,2129.1,2127.7,10.22241655]
[1770592226907,5.43362311,2129.1,2127.7,10.22241655]
[1770592227105,5.43362311,2129.1,2127.7,0.00343489]
[1770592227916,5.84293036,2128.9,2127.2,10.21898166]
[1770592228210,5.60791036,2128.9,2127.2,10.21898166]
[1770592228406,0.0051899,2129.1,2127.2,10.21898166]
[1770592228607,0.0051899,2129.1,2127.4,10.21898166]
[1770592228802,0.0051899,2129.1,2127.7,10.21898166]
[1770592229807,5.80040311,2129.1,2127.5,10.21898166]
[1770592230005,5.79119353,2129.0,2127.4,10.22434003]
[1770592230209,0.0051899,2129.1,2127.4,10.22434003]
[1770592230518,0.0051899,2129.1,2127.6,10.21898166]
[1770592230713,5.74714683,2130.1,2128.0,10.21898166]
[1770592231313,5.74714683,2130.1,2128.2,10.21898166]
[1770592231618,5.74714683,2130.1,2127.4,0.00535837]
[1770592231619,5.55302794,2129.7,2127.5,10.21898166]
[1770592231912,5.55302794,2129.3,2127.5,10.21898166]
[1770592233814,0.23496,2129.4,2127.5,10.21898166]
[1770592234019,5.08453278,2129.6,2127.5,10.21898166]
[1770592234318,0.00596459,2129.7,2127.7,10.21898166]
[1770592234519,0.00596459,2129.7,2127.7,10.45413166]
[1770592234720,0.00596459,2129.7,2127.9,10.21898166]
[1770592235123,0.00596459,2129.7,2127.7,0.23515]
[1770592235124,0.00596459,2129.7,2128.1,10.21898166]
[1770592235617,5.0852397,2129.7,2128.1,10.21898166]
[1770592236114,0.23498,2129.3,2128.1,10.21898166]
[1770592236423,5.03390579,2129.1,2127.8,10.21898166]
[1770592236618,5.03390579,2128.9,2127.8,10.21898166]
[1770592237015,5.16346042,2128.8,2127.4,10.22434003]
[1770592237616,5.39849042,2128.8,2127.4,0.00535837]
[1770592238221,5.39849042,2128.8,2127.4,10.22434003]
[1770592240225,5.01840332,2128.6,2127.4,10.22434003]
[1770592240618,4.97710819,2128.4,2127.4,0.00535837]
[1770592241225,4.97710819,2128.4,2127.1,10.21898166]
[1770592241721,4.97710819,2128.4,2126.8,10.21898166]
[1770592242025,4.91339776,2128.2,2126.8,10.21898166]
[1770592242217,4.91713876,2128.2,2126.8,10.22427999]
[1770592242619,4.91713876,2128.2,2126.8,0.00529833]
[1770592242824,5.15223876,2128.2,2126.8,0.00529833]
[1770592243121,4.89849394,2127.8,2126.5,10.21898166]
[1770592243518,4.89849394,2127.8,2125.5,10.21898166]
[1770592243826,4.89849394,2127.8,2125.7,10.21898166]
[1770592244124,4.89849394,2127.8,2125.7,10.22282649]
[1770592244327,5.13363394,2127.8,2125.7,10.22282649]
[1770592244632,4.81495997,2127.6,2125.7,10.22282649]
[1770592244924,4.73095313,2127.2,2125.7,10.22282649]
[1770592245428,4.96616313,2127.2,2125.7,10.22282649]
[1770592245815,4.71071773,2127.5,2125.7,10.22282649]
[1770592246017,4.71071773,2127.5,2125.7,0.00384483]
[1770592246218,4.71071773,2127.5,2124.9,0.10198747]
[1770592246219,0.23528,2126.5,2124.9,9.56299248]
[1770592246423,4.6711842,2126.0,2123.5,9.46100501]
[1770592246822,4.3164242,2125.8,2123.5,9.46100501]
[1770592247028,4.3164242,2125.8,2122.9,2.72883092]
[1770592247029,0.23549,2124.7,2122.9,9.46100501]
[1770592247323,3.70987251,2125.0,2122.1,9.46100501]
[1770592247324,4.3164242,2124.4,2122.1,9.46100501]
[1770592247632,4.55712558,2124.4,2122.1,9.46563452]
[1770592247929,4.32160558,2124.4,2122.1,9.46563452]
[1770592248831,0.00518138,2124.4,2122.3,9.46100501]
[1770592249227,0.00518138,2124.4,2122.5,9.46100501]
[1770592249228,4.42083347,2124.4,2122.5,9.46100501]
[1770592249620,0.00518138,2124.4,2122.5,9.46100501]
[1770592249828,0.00518138,2124.4,2122.1,0.00462951]
[1770592249829,0.00518138,2124.4,2122.7,9.46100501]
[1770592250235,0.00518138,2124.4,2122.9,9.46100501]
[1770592250528,4.37938486,2124.4,2122.9,9.46100501]
[1770592250732,0.00518138,2124.4,2122.9,9.46100501]
[1770592251131,4.32091505,2125.4,2123.1,9.46100501]
[1770592251333,4.08550505,2125.4,2123.1,9.46100501]
[1770592251539,4.05237298,2125.8,2123.3,9.46100501]
[1770592251729,4.28773298,2125.8,2123.3,9.46100501]
[1770592251924,4.05237298,2125.8,2123.5,9.46100501]
[1770592252134,4.05005039,2126.2,2123.5,9.46100501]
[1770592252331,4.01242287,2126.0,2123.5,9.46100501]
[1770592252629,4.01242287,2126.0,2123.7,9.46100501]
[1770592252837,4.24783287,2125.4,2123.7,9.46668267]
[1770592253432,3.55960111,2125.2,2123.7,9.46668267]
[1770592254337,3.79343154,2125.9,2123.7,9.46668267]
[1770592254931,3.34845988,2125.5,2123.7,9.46668267]
[1770592255128,3.58385988,2125.5,2123.7,9.46668267]
[1770592255728,3.34845988,2125.5,2123.7,9.46668267]
[1770592256534,3.27290777,2125.9,2123.9,9.46100501]
[1770592256736,3.50825777,2125.9,2123.9,9.46100501]
[1770592257037,3.2915825,2125.5,2123.9,9.46100501]
[1770592257333,3.5269825,2125.5,2123.9,9.46100501]
[1770592257532,3.25473849,2125.0,2123.7,9.46668267]
[1770592258627,3.25473849,2125.0,2123.7,0.00567766]
[1770592259137,3.21578957,2125.4,2123.7,9.46668267]
[1770592259434,3.41473046,2126.0,2123.7,9.46668267]
[1770592259645,3.41477046,2125.7,2123.7,9.46668267]
[1770592260140,3.17819711,2126.1,2123.7,9.46668267]
[1770592260336,3.17819711,2126.1,2123.9,9.46100501]
[1770592260540,0.23537,2125.8,2123.9,9.46100501]
[1770592260932,3.33764505,2125.8,2123.9,9.46100501]
[1770592261336,3.06631331,2125.6,2123.9,9.46100501]
[1770592261534,3.06631331,2125.1,2123.9,9.46100501]
[1770592261834,3.06520375,2124.6,2123.7,0.00567766]
[1770592262038,3.06520375,2124.6,2123.2,9.46100501]
[1770592262244,3.05952609,2124.1,2122.9,9.46100501]
[1770592262545,3.02378026,2124.4,2122.9,9.46100501]
[1770592262747,0.23551,2124.5,2122.9,9.46100501]
[1770592262941,0.23551,2124.5,2122.9,9.46494897]
[1770592262942,2.73226204,2124.3,2122.9,9.46494897]
[1770592263339,2.96779204,2124.3,2122.9,0.00394396]
[1770592263642,2.69712678,2123.7,2122.3,9.46100501]
[1770592263831,7.37955569,2123.5,2122.3,9.46100501]
[1770592264031,0.23559,2123.8,2122.3,9.46100501]
[1770592264032,2.69655569,2123.8,2122.3,9.46100501]
[1770592264236,0.00412711,2124.5,2122.3,9.46100501]
[1770592264237,2.69655569,2124.2,2122.3,9.46100501]
[1770592264438,2.93209569,2124.2,2122.3,9.46100501]
[1770592264633,0.00412711,2124.5,2122.4,6.20590256]
[1770592264837,2.66536201,2124.5,2122.5,9.46100501]
[1770592265034,2.90087201,2124.5,2122.5,9.46100501]
[1770592265339,2.66536201,2124.5,2122.5,9.46100501]
[1770592265543,3.07458191,2124.2,2122.5,9.46100501]
[1770592265844,7.75622704,2124.0,2122.5,9.46100501]
[1770592266144,3.07322704,2123.8,2122.5,9.46100501]
[1770592266644,0.23556,2124.0,2122.5,9.46100501]
[1770592266843,3.20886879,2124.0,2122.5,9.46100501]
[1770592267041,0.00412711,2124.5,2122.5,9.46100501]
[1770592267042,0.23557,2123.9,2122.5,9.46100501]
[1770592267244,2.97330879,2124.4,2122.5,9.46100501]
[1770592268049,2.93737868,2124.1,2122.5,9.46100501]
[1770592268441,0.00412711,2124.5,2122.5,9.46100501]
[1770592269040,2.79811705,2124.5,2122.5,9.46100501]
[1770592269244,0.23555,2124.2,2122.5,9.46100501]
[1770592269745,0.00412711,2124.5,2122.5,9.46100501]
[1770592270358,0.00412711,2124.5,2122.7,9.46100501]
[1770592271048,0.00412711,2124.5,2122.9,9.46100501]
[1770592271349,2.66742088,2125.3,2123.1,9.46100501]
[1770592271542,2.43200088,2125.7,2123.1,9.46100501]
[1770592271743,0.23536,2125.8,2123.3,9.46100501]
[1770592271948,2.66678987,2125.8,2123.3,9.46100501]
[1770592272152,2.43142987,2125.4,2123.5,9.46100501]
[1770592272351,0.23543,2125.2,2123.5,9.46100501]
[1770592272944,0.00522716,2125.4,2123.5,9.46100501]
[1770592274049,0.00522716,2125.4,2123.7,9.46100501]
[1770592274252,0.23531,2126.3,2124.2,9.46100501]
[1770592274557,0.23531,2126.3,2124.3,14.2068248]
[1770592274743,2.48550505,2126.3,2124.4,9.46100501]
[1770592274947,2.23377131,2126.0,2124.4,9.46100501]
[1770592275250,2.46917131,2125.5,2124.4,9.46444122]
[1770592275753,0.00606738,2126.0,2124.4,9.18839128]
[1770592275754,0.23542,2125.3,2124.4,9.18839128]
[1770592275948,2.19141484,2125.6,2124.4,9.18839128]
[1770592276150,0.00606738,2126.0,2124.4,9.18839128]
[1770592276758,0.23536,2125.8,2124.4,9.18839128]
[1770592277259,2.27636076,2126.0,2124.4,9.18839128]
[1770592278256,0.00606738,2126.0,2124.4,9.18839128]
[1770592278552,0.00606738,2126.0,2124.4,0.00343621]
[1770592278553,2.23735089,2125.2,2124.4,0.00343621]
[1770592278748,2.47279089,2125.1,2124.1,9.18495507]
[1770592278951,2.42363516,2125.0,2123.1,9.18495507]
[1770592279556,2.3915344,2124.6,2123.1,9.18495507]
[1770592279751,2.3915344,2124.6,2123.1,9.18846268]
[1770592279950,12.02878348,2125.5,2123.1,9.18846268]
[1770592279951,2.39103112,2124.3,2123.1,9.18846268]
[1770592280251,0.23554,2124.2,2123.1,9.18846268]
[1770592280451,2.35932385,2124.2,2123.1,9.18846268]
[1770592280751,0.23554,2124.2,2123.1,9.18846268]
[1770592281059,2.14388568,2124.0,2123.1,0.00350761]
[1770592281357,2.34768948,2123.9,2122.8,9.18495507]
[1770592281558,0.2356,2123.7,2121.8,9.18495507]
[1770592281749,0.00344894,2124.3,2122.6,9.18495507]
[1770592281945,0.00344894,2124.3,2123.0,9.18495507]
[1770592282146,2.34713833,2125.0,2123.0,9.18495507]
[1770592282350,1.08276,2125.7,2123.0,9.18495507]
[1770592282351,0.23549,2124.7,2123.0,9.18495507]
[1770592282555,2.31578756,2124.4,2123.0,9.18495507]
[1770592282756,2.31578756,2125.0,2123.0,9.18495507]
[1770592282954,2.55124756,2125.0,2123.0,9.18495507]
[1770592283155,0.23552,2124.4,2123.0,9.19058029]
[1770592283358,2.56775501,2124.6,2123.0,9.19058029]
[1770592284255,0.00358743,2125.0,2123.0,9.19058029]
[1770592284659,2.52128228,2124.6,2123.0,9.19058029]
[1770592284858,0.23549,2124.7,2123.0,9.19058029]
[1770592285453,2.42937559,2124.5,2123.0,9.19058029]
[1770592285762,0.23554,2124.2,2123.0,9.19058029]
[1770592286555,2.63302994,2124.9,2123.0,9.19058029]
[1770592287655,2.39755994,2124.9,2123.0,9.19058029]
[1770592287862,0.00358743,2125.0,2123.0,9.19058029]